Cogmind - Beta 12 @@@ ROGUE MODE // 2023.04.27 @ 09:33:05 Player: ZLD1 Result: Self-destructed Performance ------------- Evolutions (1) 500 Regions Visited (3) 600 Robots Destroyed (13) 65 Value Destroyed (207) 207 Prototype IDs (0) 0 Alien Tech Used (0) 0 Bonus (0) 0 TOTAL SCORE: 1372 Bonus ------- None Cogmind --------- Core Integrity 329/400 Matter 173/300 Energy 128/250 System Corruption 2% Temperature Hot (224) Movement Hovering (116) Ox1 Location -9/Materials Parts ------- > --- POWER (1) -------- Ion Engine > --- PROPULSION (2) --- Airjet Airjet > --- UTILITY (3) ------ Small Storage Unit Weight Redist. System Signal Interpreter > --- WEAPON (3) ------- Medium Laser Medium Laser Ion Cannon > --- INVENTORY (8) ---- Light Ion Engine Deuterium Engine Deuterium Engine Airjet Airjet Seismic Detector Ion Cannon Ion Cannon Peak State ------------ > --- POWER ------------ Ion Engine > --- PROPULSION ------- Airjet Airjet > --- UTILITY ---------- Small Storage Unit Weight Redist. System Signal Interpreter > --- WEAPON ----------- Medium Laser Medium Laser Ion Cannon > --- INVENTORY -------- Light Ion Engine Deuterium Engine Deuterium Engine Airjet Airjet Seismic Detector Ion Cannon Ion Cannon [Rating: 18] Favorites ----------- Power Ion Engine Engine Ion Engine Propulsion Aluminum Leg Leg Aluminum Leg Hover Unit Airjet Utility Small Storage Unit Device Weight Redist. System Storage Small Storage Unit Processor Signal Interpreter Weapon Small Laser Energy Gun Small Laser Energy Cannon Ion Cannon Build | -11 -10 -10 -9 ------- Run | Jun Mat Min Mat Slots Evolved 2 | . . . 2 Power . | . . . . Propulsion . | . . . . Utility 1 | . . . 1 Weapon 1 | . . . 1 Parts Attached 14 | 2 2 2 8 Power 2 | . 1 . 1 Engine 2 | . 1 . 1 Core . | . . . . Reactor . | . . . . Propulsion 4 | 2 . . 2 Treads . | . . . . Leg 2 | 2 . . . Wheel . | . . . . Hover 2 | . . . 2 Flight . | . . . . Utility 3 | . 1 . 2 Device 1 | . . . 1 Storage 1 | . 1 . . Processor 1 | . . . 1 Hackware . | . . . . Protection . | . . . . Artifact . | . . . . Weapon 5 | . . 2 3 Energy Gun 4 | . . 2 2 Energy Cannon 1 | . . . 1 Ballistic Gun . | . . . . Ballistic Cannon . | . . . . Launcher . | . . . . Special Weapon . | . . . . Impact Weapon . | . . . . Slashing Weapon . | . . . . Piercing Weapon . | . . . . Special Melee Weapon . | . . . . Unidentified Prototypes . | . . . . Parts Lost . | . . . . Power . | . . . . Propulsion . | . . . . Utility . | . . . . Weapon . | . . . . Highest Loss Streak . | . . . . To Critical Strikes . | . . . . Average Slot Usage (%) 77 | . 28 84 79 Engine 11 | . . 14 11 Leg 22 | . 28 28 14 Hover 2 | . . . 6 Device 1 | . . . 3 Storage 11 | . . 14 11 Energy Gun 25 | . . 27 27 Naked Turns . | . . . . Heaviest Build 20 | . 10 12 20 Greatest Support 22 | 20 20 20 22 Greatest Overweight (x) 1 | . . . 1 Average Overweight (x) . | . . . . Largest Inventory Capacity 8 | 5 8 8 8 Average Capacity 7 | 5 5 8 8 Most Carried 8 | 5 5 4 8 Average Carried 4 | 4 4 2 6 Final Capacity 8 | 5 8 8 8 Final Carried 8 | 5 3 4 8 Class Distribution -------------------- 72% | Mutant 27% | Gunner Dominant Class ---------------- Mutant | -10/Materials Mutant | -10/Mines Gunner | -9/Materials Resources | -11 -10 -10 -9 ----------- Run | Jun Mat Min Mat Matter Collected 207 | 37 . 37 133 Remotely . | . . . . Salvage Created 268 | . . 93 175 Parts 22 | . . 10 12 Haulers Intercepted . | . . . . Recyclers Shooed 2 | . . . 2 Parts Field Recycled . | . . . . Retrieved Matter . | . . . . Parts Self-Destructed . | . . . . Prevented . | . . . . Kills | -11 -10 -10 -9 ------- Run | Jun Mat Min Mat Combat Hostiles Destroyed 12 | . . 8 4 Melee 1 | . . . 1 Guns 9 | . . 8 1 Cannons 2 | . . . 2 Classes Destroyed 6 | . . 2 4 Operator 1 | . . . 1 Watcher 2 | . . . 2 Swarmer 8 | . . 6 2 Grunt 1 | . . . 1 Sentry 1 | . . . 1 Assembled 2 | . . 2 . Best Kill Streak 4 | . . 3 4 Combat Bots Only 3 | . . 3 3 Max Kills in Single Turn 2 | . . 2 1 Gunslinging 1 | . . 1 . Exploded . | . . . . Melee 1 | . . . 1 Uniques/NPCs Destroyed . | . . . . Combat | -11 -10 -10 -9 -------- Run | Jun Mat Min Mat Damage Taken 480 | . . 145 335 Core 93 | . . 22 71 Absorbed by Shields . | . . . . Core Remaining (%) 95 | 100 . 91 . Volleys Fired 25 | . . 13 12 Largest 3 | . . 2 3 Hottest 160 | . . 80 160 Shots Fired 60 | . . 26 34 Gun 54 | . . 26 28 Cannon 6 | . . . 6 Launcher . | . . . . Special . | . . . . Kinetic . | . . . . Thermal 60 | . . 26 34 Explosive . | . . . . Electromagnetic . | . . . . Robot Hit Streak 6 | . . 4 6 Robot Miss Streak 3 | . . 3 3 Penetration Max . | . . . . Secondary Targets 2 | . . 2 . Max Gunslinging Chain 1 | . . 1 . Shots Hit Robots 35 | . . 15 20 Core Hits 23 | . . 10 13 Critical Kills . | . . . . Critical Parts Destroyed . | . . . . Critical Strikes . | . . . . Melee Attacks . | . . . . Impact . | . . . . Slashing . | . . . . Piercing . | . . . . Sneak Attacks . | . . . . Combat Hostiles . | . . . . Follow-up Attacks . | . . . . Damage Inflicted 548 | . . 177 371 Guns 393 | . . 177 216 Cannons 136 | . . . 136 Explosions . | . . . . Melee . | . . . . Ramming 19 | . . . 19 Kinetic . | . . . . Thermal 529 | . . 177 352 Explosive . | . . . . Electromagnetic . | . . . . Impact . | . . . . Slashing . | . . . . Piercing . | . . . . Highest Corruption 2 | . . . 2 Average Corruption 2 | . . . 2 Corruption Purged . | . . . . Corruption Blocked . | . . . . Overload Shots . | . . . . Overflow Damage 3 | . . . 3 Projectiles 3 | . . . 3 Explosions . | . . . . Melee . | . . . . Knockbacks . | . . . . Impact . | . . . . Kinetic . | . . . . Secondary . | . . . . Self-Inflicted Damage 6 | . . . 6 Shots . | . . . . Rammed 2 | . . . 2 Targets Rammed 3 | . . . 3 Kicked 1 | . . . 1 Crushed . | . . . . Highest Temperature 524 | . . 108 524 Average Temperature 121 | . . 41 177 Received Heat Transfer 57 | . . . 57 Effects 6 | . . . 6 Shutdowns 1 | . . . 1 Interference 3 | . . . 3 Short Circuit 1 | . . . 1 Damage (minor) 1 | . . . 1 Siege Activations . | . . . . Robots Corrupted . | . . . . Combat Hostiles . | . . . . Parts Fried . | . . . . Impact Corruptions . | . . . . Robots Melted . | . . . . Combat Hostiles . | . . . . Parts Melted . | . . . . Heat Transferred 1228 | . . 400 828 Parts Sabotaged . | . . . . Parts Stolen . | . . . . Parts Stripped . | . . . . Power Chain Reactions . | . . . . Missiles Intercepted . | . . . . Alert | -11 -10 -10 -9 ------- Run | Jun Mat Min Mat Peak Influence 243 | . . 140 243 Initial 54 | . . . 54 Average 79 | . . 73 114 Maximum Alert Level 1 | . . . 1 Low Security (%) 97 | 100 100 100 92 Level 1 2 | . . . 7 Level 2 . | . . . . Level 3 . | . . . . Level 4 . | . . . . Level 5 . | . . . . High Security . | . . . . Max Security . | . . . . Squads Dispatched 1 | . . . 1 Investigation . | . . . . Extermination . | . . . . Reinforcement 1 | . . . 1 Assault . | . . . . Garrison . | . . . . Intercept . | . . . . Searches Triggered . | . . . . Construction Impeded . | . . . . Haulers Reinforced . | . . . . Active Scanning Responses . | . . . . Cargo Convoy Interrupts . | . . . . Stealth | -11 -10 -10 -9 --------- Run | Jun Mat Min Mat Distress Signals 2 | . . . 2 Communications Jammed . | . . . . Distress Signals . | . . . . Times Spotted 19 | . . 9 10 Peak Tracking Total 4 | . 1 3 4 Tactical Retreats . | . . . . Traps | -11 -10 -10 -9 ------- Run | Jun Mat Min Mat Traps Triggered . | . . . . Indirectly . | . . . . Trap Hack Attempts . | . . . . Triggered . | . . . . Disarmed . | . . . . Reprogrammed . | . . . . Reused . | . . . . Traps Extracted . | . . . . Installed . | . . . . Triggered . | . . . . Machines | -11 -10 -10 -9 ---------- Run | Jun Mat Min Mat Machines Disabled . | . . . . Max in Single Turn . | . . . . Machines Repaired . | . . . . Machines Sabotaged . | . . . . Overloaded Fab Kills . | . . . . Hacking | -11 -10 -10 -9 --------- Run | Jun Mat Min Mat Machines Accessed . | . . . . Terminals . | . . . . Fabricators . | . . . . Repair Stations . | . . . . Recycling Units . | . . . . Scanalyzers . | . . . . Garrison Access . | . . . . Total Hacks . | . . . . Successful . | . . . . Failed . | . . . . Catastrophic . | . . . . Database Lockouts . | . . . . Manual . | . . . . Terminals . | . . . . Fabricators . | . . . . Repair Stations . | . . . . Recycling Units . | . . . . Scanalyzers . | . . . . Garrison Access . | . . . . Terminal Hacks . | . . . . Fabricator Hacks . | . . . . Repair Station Hacks . | . . . . Recycling Unit Hacks . | . . . . Scanalyzer . | . . . . Garrison Access Hacks . | . . . . Unauthorized Hacks . | . . . . Terminals . | . . . . Fabricators . | . . . . Repair Stations . | . . . . Recycling Units . | . . . . Scanalyzers . | . . . . Garrison Access . | . . . . Data Cores Recovered . | . . . . Used . | . . . . Hacking Detections . | . . . . Full Trace Events . | . . . . Feedback Events . | . . . . Feedback Blocked . | . . . . Robot Schematics Acquired . | . . . . Robots Built . | . . . . Authchips . | . . . . Time . | . . . . Total Robot Build Rating . | . . . . Part Schematics Acquired . | . . . . Parts Built . | . . . . Authchips . | . . . . Time . | . . . . Total Part Build Rating . | . . . . Parts Repaired . | . . . . Time . | . . . . Parts Recycled . | . . . . Recycled Matter . | . . . . Retrieved Matter . | . . . . Retrieved Components . | . . . . Parts Scanalyzed . | . . . . Part Schematics Acquired . | . . . . Parts Damaged . | . . . . Bothacking | -11 -10 -10 -9 ------------ Run | Jun Mat Min Mat Used RIF Installer . | . . . . Robots Hacked . | . . . . Non-combat . | . . . . Combat . | . . . . Robot Hacks Applied . | . . . . Relay Couplers Released . | . . . . Fabnet Peak Effective % . | . . . . Robots Rewired . | . . . . Allies Hacked . | . . . . Hacks Repelled . | . . . . Allies | -11 -10 -10 -9 -------- Run | Jun Mat Min Mat Total Allies . | . . . . Largest Group . | . . . . Highest-Rated Group . | . . . . Highest-Rated Ally . | . . . . Total Orders . | . . . . Ally Attacks . | . . . . Total Damage . | . . . . Kills . | . . . . Allies Corrupted . | . . . . Allies Melted . | . . . . Intel | -11 -10 -10 -9 ------- Run | Jun Mat Min Mat Robot Analysis Total . | . . . . Derelict Logs Recovered 2 | . . 2 . Drone Launches . | . . . . Drone Recoveries . | . . . . Exploration | -11 -10 -10 -9 ------------- Run | Jun Mat Min Mat Turns Passed 620 | 29 55 300 236 Spaces Moved 444 | 23 45 212 164 Core 9 | 9 . . . Treads . | . . . . Legs 378 | 14 45 212 107 Wheels . | . . . . Hover 57 | . . . 57 Flight . | . . . . Fastest Speed 50 | 50 120 120 56 Average Speed 111 | 92 120 120 100 Slowest Speed 120 | 120 120 120 120 Overloaded Moves . | . . . . Propulsion Burnouts . | . . . . Robots Hopped . | . . . . Cave-ins Triggered . | . . . . Exploration Rate (%) 22 | 3 17 59 12 Regions Visited 3 Branch Regions 1 Pre-discovered Areas 1 | . . 1 . Known Exits Taken . | . . . . Unknown Exits Taken 3 | 1 1 1 . Scrap Searched 1 | . . 1 . Spaces Dug . | . . . . Terrain Destroyed . | . . . . Melee . | . . . . Projectile . | . . . . AOE . | . . . . Terrain Rammed . | . . . . Walls Destroyed . | . . . . Machines Disabled . | . . . . Actions | -11 -10 -10 -9 --------- Run | Jun Mat Min Mat Total 515 | 29 46 231 209 Wait 5 | . . 2 3 Move 441 | 22 44 211 164 Hop . | . . . . Pick Up 19 | 5 . 3 11 Fast Attach 6 | 2 . . 4 Attach 6 | . 2 2 2 Detach . | . . . . Swap 2 | . . . 2 Drop 8 | . . . 8 Fire 25 | . . 13 12 Melee . | . . . . Ram 2 | . . . 2 Kick 1 | . . . 1 Crush . | . . . . Escape Stasis . | . . . . Rewire . | . . . . Trap . | . . . . Miscellaneous . | . . . . Route ------- -11/Junkyard -10/Materials -10/Mines (discovered 2 exits: [*Mat] / [*Exi]) -9/Materials (discovered 1 exit: Mat) History --------- Turn | Location | Event 16 | -11/Junkyard | Discovered new exit (range 12) 30 | -11/Junkyard | Entered Materials 63 | -10/Materials | Discovered new exit (range 16) 85 | -10/Materials | Entered Mines 106 | -10/Mines | Deemed a non-threat by the Exiles lab entrance 106 | -10/Mines | Discovered new exit (range 5) 136 | -10/Mines | Learned location of Storage (-9) 150 | -10/Mines | Learned location of 1 exit from Materials 254 | -10/Mines | Assembled infested the area 309 | -10/Mines | Build established: Mutant 362 | -10/Mines | Discovered new exit (range 14) 385 | -10/Mines | Entered Materials 385 | -9/Materials | Evolved 2 slots: Utility x1, Weapon x1 386 | -9/Materials | Identified exit to Materials 621 | -9/Materials | Self-destructed Last Messages --------------- 00584_ R-06 Scavenger collects Sml. Laser. 00587_ Acquired Signal Interpreter. 00589_ Destroyed Flight Unit. 00592_ Slammed into S-10 Pest. 00592_ S-10 Pest destroyed. 00592_ Destabilizing: System corrupted (+2). 00593_ Acquired 16 matter. 00593_ S-10 Pest destroyed. 00595_ R-06 Scavenger collects Lgt. Ion Engine. 00603_ Overheating: Ion Engine damaged (-10). 00603_ G-34 Mercenary destroyed. 00606_ Power failure, Ion Engine shutdown. 00606_ Signal Interpreter broken. 00606_ Overheating: Short circuit. 00606_ Acquired 10 matter. 00607_ Acquired 37 matter. 00613_ Overheating: System interference. 00613_ Med. Laser temporarily disabled. 00613_ Weight Redist. System temporarily disabled. 00615_ Slammed into R-06 Scavenger. Map ----- +----------------------------------------------------+ | | | ?????????????????????????????????????????????????? | | ?????????????????????????????????????????????????? | | ?????????????????????????????????????????????????? | | ?????????????????????????????????????????????????? | | ?????????????????????????????????????????????????? | | ?????????????????????????????????????????????????? | | ?????????????????????????????????????????????????? | | ?????????????????????????????????????????????????? | | ?????????????????????????????????????????????????? | | ????????????????????????? ?????????????????????? | | ????????????????????????? Y ????????????????????? | | ????????????????????????? ????????????????????? | | ????????????????????????? ????????????????????? | | ????????????????????????# #????????????????????? | | ????????????????????????# #????????????????????? | | ????????????????????????# #????????????????????? | | ????????????????????????# #????????????????????? | | ????????????????????????# #????????????????????? | | ????????????????????????# #????????????????????? | | ????????????????????????# #????????????????????? | | ????????????????????????# #????????????????????? | | ????????????????????????# #????????????????????? | | ????????????????????????# #????????????????????? | | ????????????????????????# #????????????????????? | | ????????????????????????#@ #????????????????????? | | ????????????????????????# #????????????????????? | | ????????????????????????# #????????????????????? | | ????????????????????????# #????????????????????? | | ????????????????????????# #????????????????????? | | ????????????????????????# #????????????????????? | | ????????????????????????# #????????????????????? | | ???????????????#????????# #????????????????????? | | ???????????????# ???????# #??????????? ???????? | | ??????????????#? ??????# r############ #??????? | | ??????????????# ?????# !s #??????? | | ??????????????# #####%!= #??????? | | ??????????????# #??????? | | ??????????????# ## ##########+### #??????? | | ?????????????????????# #????????????# #??????? | | ?????????????????????# #????????????# ######## | | ?????????????????????# #????????????# ## | | ?????????????????????# #????????????# ## | | ?????????????????????# #????????????# ## | | ?????????????????##### #????????????# ## [!! | | ?????????????????# #????????????# ## !! | | ?????????????????#] [ #????????????# ## | | ?????????????????# #????????????# ## | | ?????????????????# ############## ## | | ?????????????????# ###+### | +----------------------------------------------------+ Best States ------------- Heat Dissipation 28 Energy Generation 10 Energy Capacity 250 Matter Stores 173 Matter Capacity 300 Sight Range 16 Terrain Scan Density 10 Additional Mass Support 6 Evasion (%) 55 Item Schematics ----------------- None Robot Schematics ------------------ None Fabricated ------------ Nothing Alien Tech Used ----------------- None Achievements -------------- None Challenges ------------ None Game ------ Seed CloakSurveybotCloak Manual? 0 Play Time 00:09:21 Cumulative 45.7 hours Start 2023.04.27 @ 09:22:48 End 2023.04.27 @ 09:33:05 Sessions 1 Manual Loads 0 Difficulty Rogue Special Mode None Game No. 101 Rogue 101 Adventurer 0 Explorer 0 Win Type - Total 0 Types 0/0/0/0/0/0/0/0/0 Lore% 26 Gallery% 40 Achievement% 29 Wizard Run 0 Options --------- ASCII 0 Keyboard 0 Movement Mouse Keybinds 0 Fullscreen 1 Font 24/Smallcaps Map View 64x52 Tactical HUD 1 Map Filters NONE Filters NONE Steam 1 RUN: 8f09613e-59de-4b7d-8194-36631ccadb25